[Event "Early-Titled-Tuesday-Blitz-February-27-2024"]
[Site "Chess.com"]
[Date "2024.02.27"]
[Round "7"]
[White "Anton_Demchenko"]
[Black "Abund"]
[Result "0-1"]
[WhiteElo "2886"]
[BlackElo "2776"]
[TimeControl "180+1"]
[EndTime "9:17:58 PST"]
[Termination "Abund won by resignation"]

1. e4 {[%clk 0:03:00.3]} 1... c6 {[%clk 0:03:00.4]} 2. d4 {[%clk 0:02:59.7]}
2... d5 {[%clk 0:03:01.3]} 3. e5 {[%clk 0:03:00.5]} 3... c5 {[%clk 0:03:01.7]}
4. Nf3 {[%clk 0:02:58.9]} 4... cxd4 {[%clk 0:03:01.2]} 5. Nxd4 {[%clk
0:02:58.6]} 5... Nc6 {[%clk 0:03:01.1]} 6. Nxc6 {[%clk 0:02:59.3]} 6... bxc6
{[%clk 0:03:02]} 7. Bd3 {[%clk 0:02:59.7]} 7... e6 {[%clk 0:03:01.3]} 8. Nd2
{[%clk 0:03:00.4]} 8... a5 {[%clk 0:03:02]} 9. Qe2 {[%clk 0:03:00.3]} 9... Ne7
{[%clk 0:02:58.6]} 10. Nf3 {[%clk 0:02:58.1]} 10... Ng6 {[%clk 0:02:30.8]} 11.
h4 {[%clk 0:02:57.4]} 11... f6 {[%clk 0:02:31.3]} 12. Bd2 {[%clk 0:02:32.3]}
12... Qc7 {[%clk 0:02:08.5]} 13. exf6 {[%clk 0:02:22.3]} 13... gxf6 {[%clk
0:02:08.9]} 14. Nd4 {[%clk 0:02:02.4]} 14... Ne5 {[%clk 0:02:00.7]} 15. f4
{[%clk 0:01:53.1]} 15... Nxd3+ {[%clk 0:01:33.2]} 16. cxd3 {[%clk 0:01:54]}
16... Kf7 {[%clk 0:00:58.5]} 17. Qh5+ {[%clk 0:01:53.8]} 17... Kg8 {[%clk
0:00:57.7]} 18. Rh3 {[%clk 0:01:54.2]} 18... Qf7 {[%clk 0:00:43.6]} 19. Rg3+
{[%clk 0:01:51.3]} 19... Bg7 {[%clk 0:00:44.1]} 20. Qe2 {[%clk 0:01:31.4]} 20...
h5 {[%clk 0:00:36.4]} 21. Rc1 {[%clk 0:01:19.6]} 21... Bd7 {[%clk 0:00:31.9]}
22. Nxc6 {[%clk 0:01:10.8]} 22... Kh7 {[%clk 0:00:25.5]} 23. Nxa5 {[%clk
0:00:49.8]} 23... Rhc8 {[%clk 0:00:23.9]} 24. Rxc8 {[%clk 0:00:44.2]} 24... Rxc8
{[%clk 0:00:24.8]} 25. d4 {[%clk 0:00:43.8]} 25... Rb8 {[%clk 0:00:13.7]} 26.
Rb3 {[%clk 0:00:27.2]} 26... Rc8 {[%clk 0:00:07]} 27. Rb7 {[%clk 0:00:26.4]}
27... Qe8 {[%clk 0:00:07]} 28. Nb3 {[%clk 0:00:20.5]} 28... Bc6 {[%clk
0:00:04.7]} 29. Ra7 {[%clk 0:00:20.4]} 29... Ra8 {[%clk 0:00:03.7]} 30. Rxa8
{[%clk 0:00:18.9]} 30... Bxa8 {[%clk 0:00:04.3]} 31. Nc5 {[%clk 0:00:18.2]}
31... e5 {[%clk 0:00:04.5]} 32. fxe5 {[%clk 0:00:15.1]} 32... fxe5 {[%clk
0:00:05]} 33. Kd1 {[%clk 0:00:06.9]} 33... e4 {[%clk 0:00:04.2]} 34. Qe3 {[%clk
0:00:05.7]} 34... Bc6 {[%clk 0:00:03.9]} 35. Bc3 {[%clk 0:00:05.6]} 35... Qg6
{[%clk 0:00:03.9]} 36. g3 {[%clk 0:00:05.1]} 36... Qg4+ {[%clk 0:00:04.1]} 37.
Kc2 {[%clk 0:00:05.1]} 37... Qh3 {[%clk 0:00:03.4]} 38. Kb3 {[%clk 0:00:05]}
38... Bh6 {[%clk 0:00:03.6]} 39. Qf2 {[%clk 0:00:05]} 39... Kg7 {[%clk
0:00:03.8]} 40. Ne6+ {[%clk 0:00:04]} 40... Qxe6 {[%clk 0:00:04.1]} 41. Qe2
{[%clk 0:00:03.5]} 41... Qe8 {[%clk 0:00:04]} 42. Kc2 {[%clk 0:00:03.4]} 42...
Bb5 {[%clk 0:00:04.5]} 43. Qf2 {[%clk 0:00:03.9]} 43... Bd3+ {[%clk 0:00:05.1]}
44. Kd1 {[%clk 0:00:03.2]} 44... Qg6 {[%clk 0:00:05.3]} 45. Bd2 {[%clk
0:00:03.3]} 45... Qg4+ {[%clk 0:00:05.7]} 46. Kc1 {[%clk 0:00:03.5]} 46... Bxd2+
{[%clk 0:00:05.1]} 47. Kxd2 {[%clk 0:00:04.4]} 47... Qc8 {[%clk 0:00:04.5]} 48.
Ke3 {[%clk 0:00:04.3]} 48... Qc1+ {[%clk 0:00:04.7]} 49. Qd2 {[%clk 0:00:04.1]}
49... Qxd2+ {[%clk 0:00:05.1]} 50. Kxd2 {[%clk 0:00:04.2]} 50... Kf6 {[%clk
0:00:05.9]} 51. a4 {[%clk 0:00:03.4]} 51... Bc4 {[%clk 0:00:04]} 52. b4 {[%clk
0:00:03.8]} 52... Ke6 {[%clk 0:00:03.9]} 53. Ke3 {[%clk 0:00:03.3]} 53... Kd6
{[%clk 0:00:03.6]} 54. Kf4 {[%clk 0:00:03.2]} 54... Bb3 {[%clk 0:00:03.3]} 55.
a5 {[%clk 0:00:02.6]} 55... Bc4 {[%clk 0:00:03.9]} 56. g4 {[%clk 0:00:03]} 56...
hxg4 {[%clk 0:00:04]} 57. Kxg4 {[%clk 0:00:03.7]} 57... e3 {[%clk 0:00:04.6]}
58. Kf3 {[%clk 0:00:04.3]} 58... e2 {[%clk 0:00:05.3]} 59. Kf2 {[%clk
0:00:04.9]} 59... Ke6 {[%clk 0:00:05.9]} 60. h5 {[%clk 0:00:04.1]} 60... Kf6
{[%clk 0:00:06.2]} 61. h6 {[%clk 0:00:04.1]} 61... Kg6 {[%clk 0:00:06.8]} 62. b5
{[%clk 0:00:04.2]} 62... Bxb5 {[%clk 0:00:07]} 63. Ke1 {[%clk 0:00:04.9]} 63...
Kxh6 {[%clk 0:00:07.2]} 64. Kd2 {[%clk 0:00:05.6]} 64... Ba6 {[%clk 0:00:07.9]}
65. Ke1 {[%clk 0:00:06.5]} 65... Kg5 {[%clk 0:00:08.4]} 66. Kd2 {[%clk
0:00:07.4]} 66... Kf6 {[%clk 0:00:09.1]} 67. Ke1 {[%clk 0:00:08.3]} 67... Kf5
{[%clk 0:00:10]} 68. Kd2 {[%clk 0:00:09.2]} 68... Ke6 {[%clk 0:00:10.9]} 69. Ke1
{[%clk 0:00:09.4]} 69... Kd6 {[%clk 0:00:11.8]} 70. Kd2 {[%clk 0:00:10.3]} 70...
Kd7 {[%clk 0:00:12.7]} 71. Ke1 {[%clk 0:00:10.9]} 71... Kc8 {[%clk 0:00:13.6]}
72. Kd2 {[%clk 0:00:11.6]} 72... Kb8 {[%clk 0:00:14.5]} 73. Ke1 {[%clk
0:00:11.9]} 73... Kc7 {[%clk 0:00:15.4]} 74. Kd2 {[%clk 0:00:12.5]} 74... Kc6
{[%clk 0:00:16.3]} 75. Ke1 {[%clk 0:00:13.2]} 75... Bc4 {[%clk 0:00:17]} 76. Kd2
{[%clk 0:00:13.7]} 76... Kb5 {[%clk 0:00:17.7]} 77. a6 {[%clk 0:00:14.5]} 77...
Kxa6 {[%clk 0:00:18.2]} 78. Ke1 {[%clk 0:00:15.2]} 78... Ka5 {[%clk 0:00:18.7]}
0-1

[Event "Early-Titled-Tuesday-Blitz-February-27-2024"]
[Site "Chess.com"]
[Date "2024.02.27"]
[Round "7"]
[White "Cheer_Down"]
[Black "MikeSailer"]
[Result "1-0"]
[WhiteElo "2482"]
[BlackElo "2177"]
[TimeControl "180+1"]
[EndTime "9:18:04 PST"]
[Termination "Cheer_Down won by resignation"]

1. e4 {[%clk 0:03:00.9]} 1... d5 {[%clk 0:03:00]} 2. exd5 {[%clk 0:03:00.4]}
2... Qxd5 {[%clk 0:02:59.9]} 3. d4 {[%clk 0:03:00.4]} 3... Nc6 {[%clk
0:02:59.7]} 4. Nf3 {[%clk 0:02:59.1]} 4... Bg4 {[%clk 0:02:58.6]} 5. Nc3 {[%clk
0:02:58.4]} 5... Qf5 {[%clk 0:02:50.1]} 6. Bd3 {[%clk 0:02:41.1]} 6... Qh5
{[%clk 0:02:36.9]} 7. d5 {[%clk 0:02:31.4]} 7... Bxf3 {[%clk 0:02:33]} 8. Qxf3
{[%clk 0:02:26.8]} 8... Qxf3 {[%clk 0:02:33.1]} 9. gxf3 {[%clk 0:02:27.7]} 9...
Ne5 {[%clk 0:02:33.2]} 10. Be2 {[%clk 0:02:26.3]} 10... O-O-O {[%clk 0:02:28.4]}
11. f4 {[%clk 0:02:18.1]} 11... Ng6 {[%clk 0:02:24.1]} 12. h4 {[%clk 0:02:16.7]}
12... h5 {[%clk 0:02:16.9]} 13. f5 {[%clk 0:01:51.2]} 13... Ne5 {[%clk
0:02:14.9]} 14. Bf4 {[%clk 0:01:51.3]} 14... Ng4 {[%clk 0:01:57.1]} 15. Bg3
{[%clk 0:01:35.7]} 15... N8f6 {[%clk 0:01:52.7]} 16. O-O-O {[%clk 0:01:33.5]}
16... g6 {[%clk 0:01:49]} 17. Bd3 {[%clk 0:01:25.8]} 17... Bh6+ {[%clk 0:01:48]}
18. Kb1 {[%clk 0:01:25.3]} 18... gxf5 {[%clk 0:01:45.5]} 19. Bxf5+ {[%clk
0:01:24.9]} 19... Kb8 {[%clk 0:01:46.4]} 20. Rhe1 {[%clk 0:01:17]} 20... Rhe8
{[%clk 0:01:22.1]} 21. a4 {[%clk 0:01:14.6]} 21... Bg7 {[%clk 0:00:57.9]} 22. f3
{[%clk 0:00:52.3]} 22... Nh6 {[%clk 0:00:55.3]} 23. Bh3 {[%clk 0:00:52.2]} 23...
a6 {[%clk 0:00:35.7]} 24. a5 {[%clk 0:00:51.6]} 24... Nd7 {[%clk 0:00:35.7]} 25.
d6 {[%clk 0:00:33]} 25... cxd6 {[%clk 0:00:27.1]} 26. Rxe7 {[%clk 0:00:32.3]}
26... Be5 {[%clk 0:00:07.1]} 27. Rxe8 {[%clk 0:00:10.7]} 27... Rxe8 {[%clk
0:00:07.6]} 28. Bxd7 {[%clk 0:00:10.5]} 28... Re7 {[%clk 0:00:08.1]} 29. Bxe5
{[%clk 0:00:09.5]} 29... dxe5 {[%clk 0:00:06.6]} 30. Ne4 {[%clk 0:00:07.4]}
30... f5 {[%clk 0:00:06.3]} 31. Ng5 {[%clk 0:00:06.2]} 31... e4 {[%clk
0:00:06.8]} 32. f4 {[%clk 0:00:05.6]} 32... Ng4 {[%clk 0:00:06.7]} 33. Bxf5
{[%clk 0:00:04.9]} 33... Ne3 {[%clk 0:00:06.1]} 34. Rd8+ {[%clk 0:00:03.9]}
34... Kc7 {[%clk 0:00:06.5]} 35. Rf8 {[%clk 0:00:02.5]} 35... Nxf5 {[%clk
0:00:06.1]} 36. Rxf5 {[%clk 0:00:02.8]} 36... e3 {[%clk 0:00:07]} 37. Re5 {[%clk
0:00:02.3]} 37... Rxe5 {[%clk 0:00:05.2]} 38. fxe5 {[%clk 0:00:03.2]} 38... Kc6
{[%clk 0:00:06.1]} 39. Kc1 {[%clk 0:00:02.7]} 39... Kd5 {[%clk 0:00:06.8]} 40.
Nf3 {[%clk 0:00:02.7]} 40... Ke4 {[%clk 0:00:05.9]} 41. Ne1 {[%clk 0:00:02.8]}
41... Kxe5 {[%clk 0:00:05.8]} 42. Kd1 {[%clk 0:00:03]} 42... Kf4 {[%clk
0:00:06.7]} 43. Ke2 {[%clk 0:00:03.1]} 43... Kg4 {[%clk 0:00:07.6]} 44. Nf3
{[%clk 0:00:03.7]} 44... Kf4 {[%clk 0:00:07.2]} 45. b4 {[%clk 0:00:04.3]} 45...
Ke4 {[%clk 0:00:06]} 46. Ng5+ {[%clk 0:00:04.1]} 46... Kf4 {[%clk 0:00:06.3]}
47. Nf3 {[%clk 0:00:04.4]} 47... Ke4 {[%clk 0:00:06.8]} 48. c3 {[%clk
0:00:05.1]} 48... Kf4 {[%clk 0:00:06.7]} 49. Ng5 {[%clk 0:00:04.5]} 49... Kg4
{[%clk 0:00:05.9]} 50. Kxe3 {[%clk 0:00:04.8]} 50... Kxh4 {[%clk 0:00:06.6]} 51.
Nf3+ {[%clk 0:00:05.2]} 51... Kg3 {[%clk 0:00:07.2]} 52. c4 {[%clk 0:00:05.1]}
52... Kg4 {[%clk 0:00:07.4]} 53. b5 {[%clk 0:00:04.8]} 53... Kf5 {[%clk
0:00:07.9]} 54. Kd4 {[%clk 0:00:03.9]} 54... Kf4 {[%clk 0:00:07.4]} 55. Nh4
{[%clk 0:00:03.2]} 55... Kg4 {[%clk 0:00:07.5]} 56. Ng2 {[%clk 0:00:03.4]} 56...
Kg3 {[%clk 0:00:07.8]} 57. Ne3 {[%clk 0:00:03.6]} 57... Kf3 {[%clk 0:00:06.1]}
58. b6 {[%clk 0:00:03.4]} 58... h4 {[%clk 0:00:06.4]} 59. c5 {[%clk 0:00:02.4]}
59... h3 {[%clk 0:00:06.6]} 60. Nf1 {[%clk 0:00:02.6]} 60... Kg2 {[%clk
0:00:06.6]} 61. c6 {[%clk 0:00:03]} 61... bxc6 {[%clk 0:00:06.6]} 62. b7 {[%clk
0:00:03.1]} 62... Kxf1 {[%clk 0:00:07]} 63. b8=Q {[%clk 0:00:03.8]} 63... h2
{[%clk 0:00:07.5]} 64. Qxh2 {[%clk 0:00:03.5]} 1-0

[Event "Early-Titled-Tuesday-Blitz-February-27-2024"]
[Site "Chess.com"]
[Date "2024.02.27"]
[Round "7"]
[White "DumbKing75"]
[Black "Fernando_Offermann"]
[Result "1-0"]
[WhiteElo "2637"]
[BlackElo "2483"]
[TimeControl "180+1"]
[EndTime "9:18:08 PST"]
[Termination "DumbKing75 won by resignation"]

1. d4 {[%clk 0:03:00.9]} 1... Nf6 {[%clk 0:02:59.7]} 2. Nf3 {[%clk 0:02:59.1]}
2... g6 {[%clk 0:02:59.9]} 3. Bf4 {[%clk 0:02:57.4]} 3... Bg7 {[%clk 0:02:59.9]}
4. e3 {[%clk 0:02:56.8]} 4... O-O {[%clk 0:02:59.9]} 5. Be2 {[%clk 0:02:56]}
5... d6 {[%clk 0:03:00.2]} 6. h3 {[%clk 0:02:55.9]} 6... c5 {[%clk 0:03:00.3]}
7. c3 {[%clk 0:02:55.6]} 7... Be6 {[%clk 0:02:59.7]} 8. O-O {[%clk 0:02:41.3]}
8... Qb6 {[%clk 0:02:59.8]} 9. Qc2 {[%clk 0:02:37.6]} 9... Nc6 {[%clk
0:02:59.8]} 10. Nbd2 {[%clk 0:02:34.2]} 10... Rac8 {[%clk 0:02:58.4]} 11. dxc5
{[%clk 0:01:53.9]} 11... Qxc5 {[%clk 0:02:57.4]} 12. Nb3 {[%clk 0:01:48.1]}
12... Qb6 {[%clk 0:02:57.4]} 13. Nbd4 {[%clk 0:01:41.8]} 13... Bd7 {[%clk
0:02:57.5]} 14. Bh2 {[%clk 0:01:32.8]} 14... a6 {[%clk 0:02:56]} 15. Rfd1 {[%clk
0:01:29.2]} 15... Na5 {[%clk 0:02:56]} 16. Nd2 {[%clk 0:00:59.6]} 16... Qc7
{[%clk 0:02:54.4]} 17. Rac1 {[%clk 0:00:56.9]} 17... b5 {[%clk 0:02:50.7]} 18.
b3 {[%clk 0:00:52.5]} 18... Qb6 {[%clk 0:02:48.6]} 19. Qb2 {[%clk 0:00:48]}
19... Rc7 {[%clk 0:02:47.6]} 20. c4 {[%clk 0:00:46]} 20... bxc4 {[%clk
0:02:46.9]} 21. Nxc4 {[%clk 0:00:46.9]} 21... Nxc4 {[%clk 0:02:46.6]} 22. Rxc4
{[%clk 0:00:47.8]} 22... Rfc8 {[%clk 0:02:46.5]} 23. Rdc1 {[%clk 0:00:47.5]}
23... Rxc4 {[%clk 0:02:46.3]} 24. Rxc4 {[%clk 0:00:48.4]} 24... Rxc4 {[%clk
0:02:46.2]} 25. Bxc4 {[%clk 0:00:49.3]} 25... e5 {[%clk 0:02:45]} 26. Nf3 {[%clk
0:00:44.5]} 26... Ne4 {[%clk 0:02:45.2]} 27. Qc2 {[%clk 0:00:39.8]} 27... Nc5
{[%clk 0:02:43.8]} 28. Bd5 {[%clk 0:00:35.8]} 28... Bf5 {[%clk 0:02:43.3]} 29.
Qc4 {[%clk 0:00:34.4]} 29... Qa7 {[%clk 0:02:36.1]} 30. b4 {[%clk 0:00:31.9]}
30... Bd3 {[%clk 0:01:53.6]} 31. Qh4 {[%clk 0:00:13.3]} 31... Ne6 {[%clk
0:01:50.6]} 32. Bxe6 {[%clk 0:00:08.4]} 32... fxe6 {[%clk 0:01:50.9]} 33. Ng5
{[%clk 0:00:09.3]} 33... Bf6 {[%clk 0:01:45.3]} 34. Qg4 {[%clk 0:00:06.7]} 34...
Bf5 {[%clk 0:01:44]} 35. Qg3 {[%clk 0:00:05.6]} 35... Qe7 {[%clk 0:01:44.1]} 36.
Nf3 {[%clk 0:00:05.3]} 36... Kg7 {[%clk 0:01:42.1]} 37. h4 {[%clk 0:00:04.8]}
37... h6 {[%clk 0:01:41.5]} 38. h5 {[%clk 0:00:04.8]} 38... g5 {[%clk
0:01:41.6]} 39. Nd2 {[%clk 0:00:05.1]} 39... d5 {[%clk 0:01:40.3]} 40. e4 {[%clk
0:00:05.7]} 40... dxe4 {[%clk 0:01:39.6]} 41. Qb3 {[%clk 0:00:04.2]} 41... Qd6
{[%clk 0:01:34]} 42. Nc4 {[%clk 0:00:03.7]} 42... Qd5 {[%clk 0:01:32.4]} 43. Bg3
{[%clk 0:00:03.4]} 43... Bg4 {[%clk 0:01:30.4]} 44. Qc3 {[%clk 0:00:02.7]} 44...
Bxh5 {[%clk 0:01:28.4]} 45. Bxe5 {[%clk 0:00:02.3]} 45... Bxe5 {[%clk
0:01:28.4]} 46. Nxe5 {[%clk 0:00:03.2]} 46... Bf7 {[%clk 0:01:21.6]} 47. a4
{[%clk 0:00:03]} 47... Kf8 {[%clk 0:01:20.7]} 48. b5 {[%clk 0:00:03.2]} 48...
axb5 {[%clk 0:01:20.6]} 49. axb5 {[%clk 0:00:04.1]} 49... Qxb5 {[%clk
0:01:20.9]} 50. Qc8+ {[%clk 0:00:04.6]} 50... Kg7 {[%clk 0:01:20.5]} 51. Qc7
{[%clk 0:00:05.5]} 51... Qe8 {[%clk 0:01:20.2]} 52. Nc4 {[%clk 0:00:05]} 52...
e5 {[%clk 0:01:17]} 53. Nxe5 {[%clk 0:00:04.5]} 53... Qe6 {[%clk 0:01:16.2]} 54.
Qc3 {[%clk 0:00:04.1]} 54... Kf8 {[%clk 0:01:15.6]} 55. Qc5+ {[%clk 0:00:03.7]}
55... Ke8 {[%clk 0:01:14.7]} 56. Qd4 {[%clk 0:00:04.6]} 56... Ke7 {[%clk
0:01:13.7]} 57. Qxe4 {[%clk 0:00:04.7]} 57... Kf6 {[%clk 0:01:12.4]} 58. Ng4+
{[%clk 0:00:04.2]} 58... Ke7 {[%clk 0:01:12.2]} 59. Qxe6+ {[%clk 0:00:04.2]}
59... Bxe6 {[%clk 0:01:12.8]} 60. Nxh6 {[%clk 0:00:04.3]} 60... Kf8 {[%clk
0:01:13.3]} 61. f3 {[%clk 0:00:04.6]} 61... Kg7 {[%clk 0:01:13.7]} 62. Ng4
{[%clk 0:00:05.4]} 62... Kg6 {[%clk 0:01:13.1]} 63. Ne3 {[%clk 0:00:05.1]} 63...
Kf6 {[%clk 0:01:12.6]} 64. Kf2 {[%clk 0:00:06]} 64... Ke5 {[%clk 0:01:13.1]} 65.
Nf1 {[%clk 0:00:05.9]} 65... Kf6 {[%clk 0:01:10.6]} 66. Nh2 {[%clk 0:00:05.6]}
66... Kg6 {[%clk 0:01:10.9]} 67. Ke3 {[%clk 0:00:06.5]} 67... Bc4 {[%clk
0:01:10]} 68. g3 {[%clk 0:00:07]} 68... Bd5 {[%clk 0:01:09.5]} 69. Ng4 {[%clk
0:00:06.9]} 69... Ba8 {[%clk 0:01:09.1]} 70. Ne5+ {[%clk 0:00:06.9]} 70... Kf5
{[%clk 0:01:09.4]} 71. Nd3 {[%clk 0:00:07.2]} 71... Bb7 {[%clk 0:01:08.9]} 72.
Nf2 {[%clk 0:00:07.8]} 72... Ba8 {[%clk 0:01:09]} 73. Ne4 {[%clk 0:00:08]} 73...
Bd5 {[%clk 0:01:04.9]} 74. Nc3 {[%clk 0:00:07.9]} 74... Bc6 {[%clk 0:01:05]} 75.
Ne2 {[%clk 0:00:07.1]} 75... Bb7 {[%clk 0:01:04.7]} 76. Nd4+ {[%clk 0:00:07.6]}
76... Ke5 {[%clk 0:01:05.2]} 77. Nb3 {[%clk 0:00:08.2]} 77... Bd5 {[%clk
0:01:02.9]} 78. Nc5 {[%clk 0:00:08.4]} 78... Kf5 {[%clk 0:01:02.2]} 79. Ne4
{[%clk 0:00:08.3]} 79... Ba8 {[%clk 0:01:01.9]} 80. g4+ {[%clk 0:00:08.3]} 80...
Ke5 {[%clk 0:01:01]} 81. Nxg5 {[%clk 0:00:08.4]} 81... Kf6 {[%clk 0:01:01.5]}
82. Kf4 {[%clk 0:00:08.1]} 82... Kg6 {[%clk 0:01:00.7]} 83. Ne4 {[%clk
0:00:08.4]} 83... Bd5 {[%clk 0:01:00.3]} 84. Ng3 {[%clk 0:00:08.2]} 84... Kf6
{[%clk 0:01:00.2]} 85. Nh5+ {[%clk 0:00:07.4]} 85... Kg6 {[%clk 0:01:00.2]} 86.
Ng3 {[%clk 0:00:08]} 86... Kf6 {[%clk 0:01:00.2]} 87. g5+ {[%clk 0:00:08.4]}
87... Kg6 {[%clk 0:01:00.1]} 88. Nf5 {[%clk 0:00:08.2]} 88... Bxf3 {[%clk
0:00:59.7]} 89. Nh4+ {[%clk 0:00:08.3]} 89... Kh5 {[%clk 0:01:00.2]} 90. Nxf3
{[%clk 0:00:09.2]} 90... Kg6 {[%clk 0:01:00.8]} 91. Ne5+ {[%clk 0:00:09.7]} 1-0

[Event "Early-Titled-Tuesday-Blitz-February-27-2024"]
[Site "Chess.com"]
[Date "2024.02.27"]
[Round "7"]
[White "newauto"]
[Black "HelvertHernandez"]
[Result "1-0"]
[WhiteElo "2219"]
[BlackElo "1999"]
[TimeControl "180+1"]
[EndTime "9:18:09 PST"]
[Termination "newauto won on time"]

1. d4 {[%clk 0:03:00.9]} 1... Nf6 {[%clk 0:01:35.8]} 2. Nf3 {[%clk 0:03:01.8]}
2... b6 {[%clk 0:01:34]} 3. Bg5 {[%clk 0:03:02.2]} 3... Ne4 {[%clk 0:01:32.5]}
4. Bh4 {[%clk 0:03:01.7]} 4... Bb7 {[%clk 0:01:32.9]} 5. Nbd2 {[%clk 0:03:01.2]}
5... Nxd2 {[%clk 0:01:32.2]} 6. Qxd2 {[%clk 0:03:01.4]} 6... d6 {[%clk
0:01:31.8]} 7. e3 {[%clk 0:02:50.2]} 7... Nd7 {[%clk 0:01:30.8]} 8. Bd3 {[%clk
0:02:48.5]} 8... g6 {[%clk 0:01:31.3]} 9. O-O {[%clk 0:02:47.4]} 9... Bxf3
{[%clk 0:01:27]} 10. gxf3 {[%clk 0:02:47.4]} 10... Bg7 {[%clk 0:01:25.9]} 11.
Be4 {[%clk 0:02:42.6]} 11... Rc8 {[%clk 0:01:15]} 12. Bb7 {[%clk 0:02:39.7]}
12... Rb8 {[%clk 0:01:14.3]} 13. Bc6 {[%clk 0:02:40.3]} 13... O-O {[%clk
0:01:13.7]} 14. c4 {[%clk 0:02:39.5]} 14... Nf6 {[%clk 0:01:04.4]} 15. b4 {[%clk
0:02:36.7]} 15... Qc8 {[%clk 0:01:04.5]} 16. Kg2 {[%clk 0:02:24.4]} 16... Qf5
{[%clk 0:01:02.4]} 17. b5 {[%clk 0:02:07.9]} 17... e5 {[%clk 0:01:00.8]} 18. a4
{[%clk 0:01:35]} 18... exd4 {[%clk 0:01:00]} 19. exd4 {[%clk 0:01:34.3]} 19...
Nh5 {[%clk 0:01:00.7]} 20. Bg3 {[%clk 0:01:31.6]} 20... Bf6 {[%clk 0:00:47.7]}
21. a5 {[%clk 0:01:28.6]} 21... Bg5 {[%clk 0:00:47.3]} 22. Qb2 {[%clk
0:01:01.9]} 22... Nf4+ {[%clk 0:00:47.3]} 23. Bxf4 {[%clk 0:00:55.4]} 23... Bxf4
{[%clk 0:00:47.2]} 24. Rh1 {[%clk 0:00:48.4]} 24... Qg5+ {[%clk 0:00:46.5]} 25.
Kf1 {[%clk 0:00:47.5]} 25... Qh4 {[%clk 0:00:46.4]} 26. h3 {[%clk 0:00:44.7]}
26... Kg7 {[%clk 0:00:41.1]} 27. Qe2 {[%clk 0:00:41.9]} 27... f5 {[%clk
0:00:37.5]} 28. axb6 {[%clk 0:00:39.7]} 28... axb6 {[%clk 0:00:35.3]} 29. Ra7
{[%clk 0:00:39.3]} 29... Rf7 {[%clk 0:00:35.8]} 30. Qe6 {[%clk 0:00:36.3]} 30...
Qf6 {[%clk 0:00:23.9]} 31. Qxf6+ {[%clk 0:00:28.9]} 31... Kxf6 {[%clk
0:00:23.9]} 32. Kg2 {[%clk 0:00:28.7]} 32... Re7 {[%clk 0:00:23.4]} 33. Rha1
{[%clk 0:00:26.8]} 33... Bd2 {[%clk 0:00:19.9]} 34. R1a3 {[%clk 0:00:20.5]}
34... Rg8 {[%clk 0:00:16.9]} 35. Rd3 {[%clk 0:00:20.4]} 35... Bf4 {[%clk
0:00:14.8]} 36. Rda3 {[%clk 0:00:19.9]} 36... h6 {[%clk 0:00:13.7]} 37. Rb7
{[%clk 0:00:19.8]} 37... Rgg7 {[%clk 0:00:13.6]} 38. Ra8 {[%clk 0:00:19.4]}
38... g5 {[%clk 0:00:14.1]} 39. Rh8 {[%clk 0:00:16.9]} 39... g4 {[%clk 0:00:12]}
40. fxg4 {[%clk 0:00:14.4]} 40... fxg4 {[%clk 0:00:12.7]} 41. hxg4 {[%clk
0:00:13.6]} 41... Rxg4+ {[%clk 0:00:13.3]} 42. Kf3 {[%clk 0:00:13.8]} 42... Rh4
{[%clk 0:00:11.5]} 43. Be4 {[%clk 0:00:11.3]} 43... Bg5 {[%clk 0:00:10.3]} 44.
Rbb8 {[%clk 0:00:10.8]} 44... Rf4+ {[%clk 0:00:09.7]} 45. Ke3 {[%clk 0:00:09.5]}
45... Rfxe4+ {[%clk 0:00:10.3]} 46. Kd3 {[%clk 0:00:09.9]} 46... Re1 {[%clk
0:00:09.7]} 47. Rbf8+ {[%clk 0:00:10.2]} 47... Kg6 {[%clk 0:00:09.9]} 48. f4
{[%clk 0:00:09.1]} 48... Bh4 {[%clk 0:00:08.7]} 49. f5+ {[%clk 0:00:09]} 49...
Kh5 {[%clk 0:00:09.1]} 50. f6 {[%clk 0:00:08.6]} 50... Bg5 {[%clk 0:00:08.9]}
51. fxe7 {[%clk 0:00:08.6]} 51... Rxe7 {[%clk 0:00:07.5]} 52. Rhg8 {[%clk
0:00:08.3]} 52... Re3+ {[%clk 0:00:07.4]} 53. Kc2 {[%clk 0:00:08.2]} 53... Re4
{[%clk 0:00:07.3]} 54. Kd3 {[%clk 0:00:07.3]} 54... Re3+ {[%clk 0:00:07.4]} 55.
Kc2 {[%clk 0:00:06.1]} 55... Re4 {[%clk 0:00:08.1]} 56. c5 {[%clk 0:00:05.6]}
56... bxc5 {[%clk 0:00:07.5]} 57. dxc5 {[%clk 0:00:05.7]} 57... Rc4+ {[%clk
0:00:08.4]} 58. Kb3 {[%clk 0:00:06.1]} 58... Rxc5 {[%clk 0:00:09.2]} 59. Rb8
{[%clk 0:00:06.1]} 59... d5 {[%clk 0:00:08.1]} 60. Rgc8 {[%clk 0:00:05.6]} 60...
Bf4 {[%clk 0:00:07]} 61. Kb4 {[%clk 0:00:06.1]} 61... Bd6 {[%clk 0:00:06.3]} 62.
Ka5 {[%clk 0:00:05.9]} 62... Rc4 {[%clk 0:00:06.3]} 63. b6 {[%clk 0:00:05.3]}
63... Bb4+ {[%clk 0:00:06.8]} 64. Kb5 {[%clk 0:00:05.3]} 64... c6+ {[%clk
0:00:05.3]} 65. Rxc6 {[%clk 0:00:05]} 65... Rd4 {[%clk 0:00:04.5]} 66. b7 {[%clk
0:00:04.7]} 66... Bd2 {[%clk 0:00:04.1]} 67. Rd8 {[%clk 0:00:05]} 67... Bf4
{[%clk 0:00:03.9]} 68. b8=Q {[%clk 0:00:05]} 68... Bxb8 {[%clk 0:00:03.9]} 69.
Rxb8 {[%clk 0:00:05.9]} 69... Rd1 {[%clk 0:00:04.2]} 70. Rd8 {[%clk 0:00:06.4]}
70... Rb1+ {[%clk 0:00:04.2]} 71. Ka4 {[%clk 0:00:06.2]} 71... Ra1+ {[%clk
0:00:04.1]} 72. Kb3 {[%clk 0:00:06.8]} 72... Rd1 {[%clk 0:00:03.3]} 73. Kc2
{[%clk 0:00:06.6]} 73... Rd4 {[%clk 0:00:02.5]} 74. Rcd6 {[%clk 0:00:06.4]}
74... Rc4+ {[%clk 0:00:01.4]} 75. Kd3 {[%clk 0:00:06.7]} 1-0